[Event "Romanian-ch Youth Open U10 2024"]
[Site "Eforie Nord"]
[Date "2024.04.12"]
[Round "1.1"]
[White "Patrasc, Patric-Cezar"]
[Black "Cazacu, Iustin-Nicolas"]
[Result "1/2-1/2"]
[ECO "A46"]
[WhiteElo "1469"]
[BlackElo "1857"]
[Annotator "NA RC COMBH"]
[PlyCount "136"]
[EventDate "2024.04.10"]
[EventType "swiss"]
[EventCountry "ROU"]
[SourceTitle "playchess.com"]
[Source "ChessBase"]
[SourceQuality "1"]
[TimeControl "5400+30"]

1. Nf3 {[%emt 0:00:04]} Nf6 {[%emt 0:00:10]} 2. g3 {[%emt 0:00:05]} e6 {[%emt 0:00:07]} 3. Bg2 {[%emt 0:00:44]} d5 {[%emt 0:00:38]} 4. d4 {[%emt 0:01:59]} b5 {[%emt 0:00:40]} 5. O-O {[%emt 0:02:56]} Be7 {[%emt 0:01:26]} 6. b3 {[%emt 0:01:59]} b4 {[%emt 0:02:38]} 7. a3 {[%emt 0:02:52]} c5 {[%emt 0:02:13]} 8. dxc5 {[%emt 0:01:49]} Bxc5 {[%emt 0:00:25]} 9. axb4 {[%emt 0:00:02]} Bxb4 {[%emt 0:00:04]} 10. c4 {[%emt 0:00:38]} Bb7 {[%emt 0:03:44]} 11. Ba3 {[%emt 0:02:51]} Bxa3 {[%emt 0:01:10]} 12. Nxa3 {[%emt 0:00:03]} O-O {[%emt 0:00:20]} 13. Ne5 {[%emt 0:16:37]} Nc6 {[%emt 0:04:01]} 14. Nxc6 {[%emt 0:00:07]} Bxc6 {[%emt 0:00:06]} 15. cxd5 {[%emt 0:04:17]} Bxd5 {[%emt 0:01:59]} 16. Bxd5 {[%emt 0:00:43]} Qxd5 {[%emt 0:00:25]} 17. Qxd5 {[%emt 0:04:51]} Nxd5 {[%emt 0:00:14]} 18. Rfc1 {[%emt 0:00:13]} Rfb8 {[%emt 0:02:27]} 19. Rab1 {[%emt 0:03:16]} h5 {[%emt 0:02:54]} 20. Kf1 {[%emt 0:08:44]} Rb4 {[%emt 0:03:53]} 21. Rc4 {[%emt 0:01:01]} Rb7 {[%emt 0:00:37]} 22. b4 {[%emt 0:03:31]} Rab8 {[%emt 0:01:28]} 23. b5 {[%emt 0:01:21]} a6 {[%emt 0:00:21]} 24. Rc5 {[%emt 0:01:24]} Nc7 {[%emt 0:00:16]} 25. b6 {[%emt 0:00:28]} Nd5 {[%emt 0:00:25]} 26. Nc4 {[%emt 0:02:47]} Kf8 {[%emt 0:02:23]} 27. Kg2 {[%emt 0:09:24]} Ke7 {[%emt 0:01:20]} 28. e4 {[%emt 0:00:22]} Nc3 {[%emt 0:01:30]} 29. Rc7+ {[%emt 0:01:01]} Rxc7 {[%emt 0:00:25]} 30. bxc7 {[%emt 0:00:05]} Rc8 {[%emt 0:00:22]} 31. Rb7 {[%emt 0:00:52]} Nb5 {[%emt 0:00:16]} 32. Rb6 {[%emt 0:06:09]} Nxc7 {[%emt 0:02:08]} 33. Rc6 {[%emt 0:00:36]} Kd8 {[%emt 0:01:12]} 34. Rd6+ {[%emt 0:01:26]} Ke8 {[%emt 0:00:56]} 35. Rc6 {[%emt 0:00:13]} f6 {[%emt 0:00:48]} 36. Nb6 {[%emt 0:01:11]} Rb8 {[%emt 0:00:11]} 37. Rxc7 {[%emt 0:00:07]} Rxb6 {[%emt 0:00:15]} 38. Rxg7 {[%emt 0:00:23]} Kd8 {[%emt 0:00:49]} 39. Kf3 {[%emt 0:00:16]} a5 {[%emt 0:00:14]} 40. Ke3 {[%emt 0:00:34]} Ra6 {[%emt 0:00:27]} 41. Kd2 {[%emt 0:00:35]} a4 {[%emt 0:00:09]} 42. Kc1 {[%emt 0:00:32]} a3 {[%emt 0:00:53]} 43. Kb1 {[%emt 0:00:06]} a2+ {[%emt 0:03:12]} 44. Ka1 {[%emt 0:00:05]} Ra4 {[%emt 0:00:09]} 45. Rh7 {[%emt 0:00:28]} Rxe4 {[%emt 0:00:11]} 46. Rxh5 {[%emt 0:00:26]} Re2 {[%emt 0:00:11]} 47. f4 {[%emt 0:00:51]} e5 {[%emt 0:00:53]} 48. fxe5 {[%emt 0:01:54]} fxe5 {[%emt 0:00:08]} 49. g4 {[%emt 0:00:20]} Ke7 {[%emt 0:00:14]} 50. g5 {[%emt 0:00:43]} e4 {[%emt 0:00:14]} 51. g6 {[%emt 0:01:12]} Kf6 {[%emt 0:00:11]} 52. Rg5 {[%emt 0:01:02]} Kg7 {[%emt 0:00:37]} 53. h4 {[%emt 0:00:49]} e3 {[%emt 0:00:56]} 54. Rg3 {[%emt 0:00:21]} Re1+ {[%emt 0:00:46]} 55. Kxa2 {[%emt 0:00:08]} e2 {[%emt 0:00:01]} 56. Re3 {[%emt 0:00:28]} Kxg6 {[%emt 1:03:48]} 57. Kb2 {[%emt 0:00:16]} Kf5 {[%emt 0:00:00]} 58. Kc2 {[%emt 0:00:31]} Kf4 {[%emt 0:00:00]} 59. Kd2 {[%emt 0:00:32]} Ra1 {[%emt 0:00:00]} 60. Rxe2 {[%emt 0:00:37]} Ra2+ {[%emt 0:00:00]} 61. Ke1 {[%emt 0:00:07]} Ra1+ {[%emt 0:00:00]} 62. Kd2 {[%emt 0:00:44]} Rh1 {[%emt 0:00:00]} 63. Rf2+ {[%emt 0:00:32]} Kg3 {[%emt 0:00:00]} 64. Rf8 {[%emt 0:00:44]} Rxh4 {[%emt 0:00:00]} 65. Rg8+ {[%emt 0:00:21]} Kf4 {[%emt 0:00:00]} 66. Ra8 {[%emt 0:00:18]} Kg4 {[%emt 0:00:00]} 67. Ra4+ {[%emt 0:00:16]} Kg3 {[%emt 0:00:00]} 68. Rxh4 {[%emt 0:00:13]} Kxh4 {[%emt 0:00:00]} 1/2-1/2

[Event "Romanian-ch Youth Open U10 2024"]
[Site "Eforie Nord"]
[Date "2024.04.12"]
[Round "1.2"]
[White "Kovacs, Balazs"]
[Black "Ardeleanu, Teodor-Stefan"]
[Result "1-0"]
[ECO "B01"]
[WhiteElo "1866"]
[BlackElo "1461"]
[Annotator "NA RC COMBH"]
[PlyCount "63"]
[EventDate "2024.04.10"]
[EventType "swiss"]
[EventCountry "ROU"]
[SourceTitle "playchess.com"]
[Source "ChessBase"]
[SourceQuality "1"]
[TimeControl "5400+30"]

1. e4 {[%emt 0:00:03]} d5 {[%emt 0:00:26]} 2. exd5 {[%emt 0:00:22]} Qxd5 {[%emt 0:00:17]} 3. Nc3 {[%emt 0:00:05]} Qa5 {[%emt 0:00:37]} 4. d4 {[%emt 0:00:11]} Nf6 {[%emt 0:00:56]} 5. Nf3 {[%emt 0:01:00]} Bf5 {[%emt 0:01:09]} 6. Bc4 {[%emt 0:01:06]} e6 {[%emt 0:01:23]} 7. Bd2 {[%emt 0:01:11]} Bb4 {[%emt 0:01:28]} 8. a3 {[%emt 0:01:42]} Bxc3 {[%emt 0:01:51]} 9. Bxc3 {[%emt 0:00:09]} Qb6 {[%emt 0:01:03]} 10. O-O {[%emt 0:06:40]} Nc6 {[%emt 0:02:55]} 11. Qd2 {[%emt 0:14:02]} O-O-O {[%emt 0:09:53]} 12. a4 {[%emt 0:08:49]} a5 {[%emt 0:05:35]} 13. Bb5 {[%emt 0:03:24]} Ne4 {[%emt 0:04:49]} 14. Qe2 {[%emt 0:02:24]} Nxc3 {[%emt 0:02:56]} 15. bxc3 {[%emt 0:00:10]} Ne7 {[%emt 0:02:12]} 16. Rab1 {[%emt 0:00:34]} Qd6 {[%emt 0:01:46]} 17. Ne5 {[%emt 0:01:04]} Bg6 {[%emt 0:03:19]} 18. Qf3 {[%emt 0:01:35]} Qd5 {[%emt 0:03:56]} 19. Qe2 {[%emt 0:03:46]} Qd6 {[%emt 0:02:45]} 20. Rb2 {[%emt 0:04:51]} f6 {[%emt 0:02:52]} 21. Nc4 {[%emt 0:00:53]} Qd5 {[%emt 0:01:49]} 22. Nxa5 {[%emt 0:00:30]} Rd6 {[%emt 0:08:04]} 23. Rfb1 {[%emt 0:03:03]} b6 {[%emt 0:02:49]} 24. Ba6+ {[%emt 0:05:14]} Kb8 {[%emt 0:02:55]} 25. Nc4 {[%emt 0:02:25]} Nc6 {[%emt 0:02:55]} 26. Nxd6 {[%emt 0:04:48]} Qxd6 {[%emt 0:01:28]} 27. Qe3 {[%emt 0:03:38]} Na5 {[%emt 0:01:30]} 28. c4 {[%emt 0:04:08]} Ka7 {[%emt 0:02:07]} 29. c5 {[%emt 0:00:22]} bxc5 {[%emt 0:02:00]} 30. Qc3 {[%emt 0:05:45]} Kxa6 {[%emt 0:02:37]} 31. dxc5 {[%emt 0:00:47]} Qd5 {[%emt 0:01:54]} 32. Rb6+ {[%emt 0:00:32]} 1-0

[Event "Romanian-ch Youth Open U10 2024"]
[Site "Eforie Nord"]
[Date "2024.04.12"]
[Round "1.3"]
[White "Nemes, Victor-Nicholas"]
[Black "Varabiescu, Petru"]
[Result "0-1"]
[ECO "A48"]
[WhiteElo "1453"]
[BlackElo "1791"]
[Annotator "NA RC COMBH"]
[PlyCount "118"]
[EventDate "2024.04.10"]
[EventType "swiss"]
[EventCountry "ROU"]
[SourceTitle "playchess.com"]
[Source "ChessBase"]
[SourceQuality "1"]
[TimeControl "5400+30"]

1. d4 {[%emt 0:00:01]} Nf6 {[%emt 0:00:05]} 2. Nf3 {[%emt 0:00:11]} g6 {[%emt 0:00:07]} 3. Bf4 {[%emt 0:00:20]} Bg7 {[%emt 0:00:03]} 4. e3 {[%emt 0:00:23]} O-O {[%emt 0:00:07]} 5. Bd3 {[%emt 0:00:17]} d6 {[%emt 0:00:09]} 6. Nbd2 {[%emt 0:00:59]} Nbd7 {[%emt 0:00:13]} 7. O-O {[%emt 0:00:19]} Re8 {[%emt 0:00:41]} 8. Qe2 {[%emt 0:00:51]} h6 {[%emt 0:00:52]} 9. h3 {[%emt 0:00:19]} e5 {[%emt 0:00:07]} 10. dxe5 {[%emt 0:04:45]} dxe5 {[%emt 0:00:11]} 11. Bh2 {[%emt 1:27:35]} e4 {[%emt 1:33:25]} 12. Nxe4 {[%emt 0:00:00]} Nxe4 {[%emt 0:00:00]} 13. Rab1 {[%emt 0:00:00]} b6 {[%emt 0:00:00]} 14. Qd1 {[%emt 0:00:00]} Bb7 {[%emt 0:00:00]} 15. Bc4 {[%emt 0:00:00]} Ne5 {[%emt 0:00:00]} 16. Qxd8 {[%emt 0:00:00]} Raxd8 {[%emt 0:00:00]} 17. Bxe5 {[%emt 0:00:00]} Bxe5 {[%emt 0:00:00]} 18. Rfe1 {[%emt 0:00:00]} Nd2 {[%emt 0:00:00]} 19. Nxd2 {[%emt 0:00:00]} Rxd2 {[%emt 0:00:00]} 20. Bd3 {[%emt 0:00:00]} Rd8 {[%emt 0:00:00]} 21. b3 {[%emt 0:00:00]} Bc3 {[%emt 0:00:00]} 22. Red1 {[%emt 0:00:00]} Rxd1+ {[%emt 0:00:00]} 23. Rxd1 {[%emt 0:00:00]} Be4 {[%emt 0:00:00]} 24. Rb1 {[%emt 0:06:30]} Bc6 {[%emt 0:06:30]} 25. a4 {[%emt 0:00:00]} a5 {[%emt 0:00:00]} 26. Rc1 {[%emt 0:00:00]} Kg7 {[%emt 0:00:00]} 27. Kf1 {[%emt 0:00:00]} Kf6 {[%emt 0:00:00]} 28. f3 {[%emt 0:00:00]} Bd2 {[%emt 0:00:00]} 29. Rd1 {[%emt 0:00:00]} Bxe3 {[%emt 0:00:00]} 30. Ke2 {[%emt 0:03:00]} Bf4 {[%emt 0:03:00]} 31. Kf1 {[%emt 0:00:00]} Rd6 {[%emt 0:00:00]} 32. Kf2 {[%emt 0:00:00]} Bd7 {[%emt 0:00:00]} 33. g4 {[%emt 0:00:00]} Kg5 {[%emt 0:00:00]} 34. Kg2 {[%emt 0:00:00]} Bc6 {[%emt 0:00:00]} 35. Kf2 {[%emt 0:00:00]} Kh4 {[%emt 0:00:00]} 36. Kg2 {[%emt 0:00:00]} Re6 {[%emt 0:00:00]} 37. Bc4 {[%emt 0:03:30]} Re3 {[%emt 0:03:30]} 38. Rf1 {[%emt 0:00:00]} Bg3 {[%emt 0:00:00]} 39. Ba6 {[%emt 0:00:00]} Re1 {[%emt 0:00:00]} 40. Rxe1 {[%emt 0:00:00]} Bxe1 {[%emt 0:00:00]} 41. Bc4 {[%emt 0:00:00]} f5 {[%emt 0:00:00]} 42. Be6 {[%emt 0:00:00]} fxg4 {[%emt 0:00:00]} 43. hxg4 {[%emt 0:00:00]} Kg5 {[%emt 0:00:00]} 44. Bc4 {[%emt 0:00:00]} Kf4 {[%emt 0:00:00]} 45. Kf1 {[%emt 0:00:00]} Bc3 {[%emt 0:00:00]} 46. Ke2 {[%emt 0:00:00]} Bxf3+ {[%emt 0:00:00]} 47. Kd3 {[%emt 0:00:00]} Bf6 {[%emt 0:00:00]} 48. Bb5 {[%emt 0:00:00]} Bxg4 {[%emt 0:00:00]} 49. Kc4 {[%emt 0:00:00]} Be2+ {[%emt 0:00:00]} 50. Kd5 {[%emt 0:00:00]} Bxb5 {[%emt 0:00:00]} 51. axb5 {[%emt 0:00:00]} h5 {[%emt 0:00:00]} 52. Kc6 {[%emt 0:07:30]} Be5 {[%emt 0:07:30]} 53. c4 {[%emt 0:00:00]} Bd6 {[%emt 0:00:00]} 54. Kd5 {[%emt 0:00:00]} h4 {[%emt 0:00:00]} 55. Kd4 {[%emt 0:00:00]} h3 {[%emt 0:00:00]} 56. Kd3 {[%emt 0:00:00]} h2 {[%emt 0:00:00]} 57. Kc2 {[%emt 0:00:00]} h1=Q {[%emt 0:00:00]} 58. Kd3 {[%emt 0:00:00]} Bb4 {[%emt 0:00:00]} 59. Kd4 {[%emt 0:00:00]} Qe4# {[%emt 0:00:00]} 0-1

[Event "Romanian-ch Youth Open U10 2024"]
[Site "Eforie Nord"]
[Date "2024.04.12"]
[Round "1.4"]
[White "Larion, Iustin"]
[Black "Pana, Alexandru-Ioan"]
[Result "1-0"]
[ECO "B05"]
[WhiteElo "1743"]
[BlackElo "1451"]
[Annotator "NA RC COMBH"]
[PlyCount "55"]
[EventDate "2024.04.10"]
[EventType "swiss"]
[EventCountry "ROU"]
[SourceTitle "playchess.com"]
[Source "ChessBase"]
[SourceQuality "1"]
[TimeControl "5400+30"]

1. e4 {[%emt 0:00:05]} Nf6 {[%emt 0:00:13]} 2. e5 {[%emt 0:00:07]} Nd5 {[%emt 0:00:07]} 3. d4 {[%emt 0:00:11]} d6 {[%emt 0:00:15]} 4. Nf3 {[%emt 0:00:11]} Bg4 {[%emt 0:01:02]} 5. Be2 {[%emt 0:00:23]} Bxf3 {[%emt 0:01:01]} 6. Bxf3 {[%emt 0:00:23]} c6 {[%emt 0:00:50]} 7. exd6 {[%emt 0:01:28]} Qxd6 {[%emt 0:01:02]} 8. O-O {[%emt 0:00:59]} g6 {[%emt 0:05:30]} 9. c4 {[%emt 0:01:41]} Nf6 {[%emt 0:01:07]} 10. Nc3 {[%emt 0:01:08]} Bg7 {[%emt 0:02:57]} 11. Be3 {[%emt 0:00:25]} O-O {[%emt 0:01:46]} 12. Qb3 {[%emt 0:00:17]} Qd7 {[%emt 0:05:03]} 13. h3 {[%emt 0:04:37]} b6 {[%emt 0:11:55]} 14. Rfd1 {[%emt 0:00:41]} Rd8 {[%emt 0:09:52]} 15. d5 {[%emt 0:00:51]} c5 {[%emt 0:01:57]} 16. d6 {[%emt 0:00:12]} Na6 {[%emt 0:17:08]} 17. Bxa8 {[%emt 0:00:23]} Rxa8 {[%emt 0:00:18]} 18. dxe7 {[%emt 0:00:52]} Qxe7 {[%emt 0:00:52]} 19. a3 {[%emt 0:01:14]} Nc7 {[%emt 0:02:40]} 20. Re1 {[%emt 0:00:41]} Qd7 {[%emt 0:10:11]} 21. Rad1 {[%emt 0:00:23]} Qf5 {[%emt 0:05:57]} 22. Rd2 {[%emt 0:10:35]} Re8 {[%emt 0:01:14]} 23. Qc2 {[%emt 0:01:24]} Qe5 {[%emt 0:01:00]} 24. Rde2 {[%emt 0:00:54]} Qd6 {[%emt 0:03:52]} 25. Qd2 {[%emt 0:00:47]} Qc6 {[%emt 0:01:46]} 26. Bf4 {[%emt 0:00:30]} Ne6 {[%emt 0:00:36]} 27. Nd5 {[%emt 0:02:39]} Rd8 {[%emt 0:02:27]} 28. Ne7+ {[%emt 0:00:14]} 1-0

[Event "Romanian-ch Youth Open U10 2024"]
[Site "Eforie Nord"]
[Date "2024.04.13"]
[Round "2.1"]
[White "Pasat, Rares-Stefan"]
[Black "Kovacs, Balazs"]
[Result "0-1"]
[ECO "C54"]
[WhiteElo "1523"]
[BlackElo "1866"]
[Annotator "NA RC COMBH"]
[PlyCount "42"]
[EventDate "2024.04.10"]
[EventType "swiss"]
[EventCountry "ROU"]
[SourceTitle "playchess.com"]
[Source "ChessBase"]
[SourceQuality "1"]
[TimeControl "5400+30"]

1. e4 {[%emt 0:00:04]} e5 {[%emt 0:00:07]} 2. Nf3 {[%emt 0:00:06]} Nc6 {[%emt 0:00:04]} 3. d4 {[%emt 0:00:07]} exd4 {[%emt 0:00:04]} 4. Bc4 {[%emt 0:00:06]} Bc5 {[%emt 0:00:13]} 5. c3 {[%emt 0:00:18]} Nf6 {[%emt 0:00:05]} 6. e5 {[%emt 0:02:44]} d5 {[%emt 0:00:12]} 7. exf6 {[%emt 0:01:46]} dxc4 {[%emt 0:00:17]} 8. fxg7 {[%emt 0:00:32]} Rg8 {[%emt 0:00:06]} 9. Qe2+ {[%emt 0:01:58]} Be6 {[%emt 0:02:57]} 10. cxd4 {[%emt 0:05:21]} Nxd4 {[%emt 0:01:59]} 11. Nxd4 {[%emt 0:01:47]} Qxd4 {[%emt 0:01:16]} 12. Be3 {[%emt 0:11:16]} Bb4+ {[%emt 0:03:33]} 13. Bd2 {[%emt 0:01:20]} Qxb2 {[%emt 0:01:54]} 14. Bxb4 $19 {[%emt 0:00:38]} Qxa1 {[%emt 0:01:52]} 15. Qe4 {[%emt 0:01:24]} O-O-O {[%emt 0:01:28]} 16. O-O {[%emt 0:02:35]} Qxg7 {[%emt 0:00:21]} 17. Nc3 {[%emt 0:02:33]} Rd4 {[%emt 0:03:03]} 18. Qf3 {[%emt 0:00:37]} Rd3 {[%emt 0:00:22]} 19. Qg3 {[%emt 0:01:36]} Rxg3 {[%emt 0:00:08]} 20. fxg3 {[%emt 0:00:06]} Qd4+ {[%emt 0:00:06]} 21. Kh1 {[%emt 0:00:12]} c5 {[%emt 0:01:05]} 0-1

[Event "Romanian-ch Youth Open U10 2024"]
[Site "Eforie Nord"]
[Date "2024.04.13"]
[Round "2.2"]
[White "Varabiescu, Petru"]
[Black "Pruszter, Alexandru"]
[Result "1-0"]
[ECO "B06"]
[WhiteElo "1791"]
[BlackElo "1496"]
[Annotator "NA RC COMBH"]
[PlyCount "61"]
[EventDate "2024.04.10"]
[EventType "swiss"]
[EventCountry "ROU"]
[SourceTitle "playchess.com"]
[Source "ChessBase"]
[SourceQuality "1"]
[TimeControl "5400+30"]

1. e4 {[%emt 0:00:01]} g6 {[%emt 0:00:14]} 2. d4 {[%emt 0:00:04]} Bg7 {[%emt 0:00:09]} 3. Nf3 {[%emt 0:00:10]} d6 {[%emt 0:00:07]} 4. Bd3 {[%emt 0:00:14]} c6 {[%emt 0:00:24]} 5. c3 {[%emt 0:00:32]} Nf6 {[%emt 0:00:26]} 6. O-O {[%emt 0:00:37]} Qc7 {[%emt 0:00:16]} 7. Re1 {[%emt 0:01:11]} e5 {[%emt 0:00:16]} 8. Nbd2 {[%emt 0:01:25]} O-O {[%emt 0:00:21]} 9. Nc4 {[%emt 0:02:19]} b5 {[%emt 0:00:26]} 10. dxe5 {[%emt 0:02:58]} bxc4 {[%emt 0:02:21]} 11. exf6 {[%emt 0:00:07]} cxd3 {[%emt 0:00:56]} 12. fxg7 {[%emt 0:00:07]} Kxg7 {[%emt 0:00:27]} 13. Qxd3 {[%emt 0:01:19]} Nd7 {[%emt 0:01:26]} 14. Bf4 Ne5 {[%emt 0:00:30]} 15. Qxd6 Qxd6 {[%emt 0:00:30]} 16. Bxe5+ Qxe5 {[%emt 0:00:30]} 17. Nxe5 Bb7 {[%emt 0:00:30]} 18. Rad1 Rad8 {[%emt 0:00:30]} 19. f3 f6 {[%emt 0:00:30]} 20. Nd7 Rfe8 {[%emt 0:00:30]} 21. Nc5 Bc8 {[%emt 0:00:30]} 22. Kf2 Rxd1 {[%emt 0:00:30]} 23. Rxd1 Re5 {[%emt 0:00:30]} 24. Rd8 Rxc5 {[%emt 0:00:30]} 25. Rxc8 Ra5 {[%emt 0:00:30]} 26. Rc7+ Kh6 {[%emt 0:00:30]} 27. a3 Ra6 {[%emt 0:00:30]} 28. Rb7 Ra5 {[%emt 0:00:30]} 29. Ke3 Kg5 {[%emt 0:00:30]} 30. Rxh7 Rb5 {[%emt 0:00:30]} 31. h4# 1-0

[Event "Romanian-ch Youth Open U10 2024"]
[Site "Eforie Nord"]
[Date "2024.04.13"]
[Round "2.3"]
[White "Ghiocanu-Pirvan, David-Mihai"]
[Black "Larion, Iustin"]
[Result "0-1"]
[ECO "D05"]
[WhiteElo "1522"]
[BlackElo "1743"]
[Annotator "NA RC COMBH"]
[PlyCount "52"]
[EventDate "2024.04.10"]
[EventType "swiss"]
[EventCountry "ROU"]
[SourceTitle "playchess.com"]
[Source "ChessBase"]
[SourceQuality "1"]
[TimeControl "5400+30"]

1. d4 {[%emt 0:00:01]} Nf6 {[%emt 0:00:23]} 2. Nf3 {[%emt 0:01:14]} d5 {[%emt 0:00:09]} 3. e3 {[%emt 0:00:30]} c5 {[%emt 0:01:55]} 4. c3 {[%emt 0:02:45]} Nc6 {[%emt 0:01:16]} 5. Bd3 {[%emt 0:04:13]} e6 {[%emt 0:02:38]} 6. Nbd2 {[%emt 0:21:06]} Bd6 {[%emt 0:00:29]} 7. b3 {[%emt 0:08:13]} O-O {[%emt 0:00:24]} 8. Bb2 {[%emt 0:04:18]} Re8 {[%emt 0:06:19]} 9. c4 {[%emt 0:08:11]} cxd4 {[%emt 0:07:27]} 10. exd4 {[%emt 0:05:51]} e5 {[%emt 0:02:57]} 11. Be2 {[%emt 0:10:28]} e4 {[%emt 0:07:03]} 12. Ng1 {[%emt 0:01:14]} Ne7 {[%emt 0:02:25]} 13. Qc2 {[%emt 0:02:37]} Nf5 {[%emt 0:04:16]} 14. Nf1 {[%emt 0:01:44]} Bb4+ {[%emt 0:01:36]} 15. Kd1 {[%emt 0:03:02]} e3 {[%emt 0:03:36]} 16. f3 {[%emt 0:01:13]} dxc4 {[%emt 0:01:16]} 17. Qxc4 {[%emt 0:01:27]} Bf8 {[%emt 0:01:08]} 18. g4 {[%emt 0:01:49]} Nd6 {[%emt 0:00:30]} 19. Qd3 {[%emt 0:00:35]} Nd5 {[%emt 0:01:27]} 20. Ng3 {[%emt 0:01:14]} Bd7 {[%emt 0:02:57]} 21. Ke1 {[%emt 0:03:43]} Nf4 {[%emt 0:01:54]} 22. Qd1 {[%emt 0:00:46]} h5 {[%emt 0:03:19]} 23. gxh5 {[%emt 0:01:09]} Qh4 {[%emt 0:00:41]} 24. Kf1 {[%emt 0:01:19]} Bh3+ {[%emt 0:00:51]} 25. Ke1 {[%emt 0:00:40]} Nf5 {[%emt 0:00:45]} 26. Nxh3 {[%emt 0:02:41]} Bb4+ {[%emt 0:45:49]} 0-1

[Event "Romanian-ch Youth Open U10 2024"]
[Site "Eforie Nord"]
[Date "2024.04.13"]
[Round "2.4"]
[White "Iordache, Sergiu-Andrei"]
[Black "Pasca, Alexandru-Daniel"]
[Result "0-1"]
[ECO "B43"]
[WhiteElo "1498"]
[BlackElo "1623"]
[Annotator "NA RC COMBH"]
[PlyCount "52"]
[EventDate "2024.04.10"]
[EventType "swiss"]
[EventCountry "ROU"]
[SourceTitle "playchess.com"]
[Source "ChessBase"]
[SourceQuality "1"]
[TimeControl "5400+30"]

1. e4 {[%emt 0:00:00]} c5 {[%emt 0:00:00]} 2. Nf3 {[%emt 0:00:00]} e6 {[%emt 0:00:00]} 3. d4 {[%emt 0:00:00]} cxd4 {[%emt 0:00:01]} 4. Nxd4 {[%emt 0:00:04]} a6 {[%emt 0:00:03]} 5. Nc3 {[%emt 0:01:03]} Qc7 {[%emt 0:00:17]} 6. Be3 {[%emt 0:00:43]} Bb4 {[%emt 0:00:05]} 7. Qd2 {[%emt 0:05:37]} Nf6 {[%emt 0:00:21]} 8. f3 {[%emt 0:02:44]} d5 {[%emt 0:00:35]} 9. Bd3 {[%emt 0:06:39]} e5 {[%emt 0:02:26]} 10. a3 {[%emt 0:03:07]} Bxc3 {[%emt 0:09:15]} 11. Qxc3 {[%emt 0:01:13]} Qxc3+ {[%emt 0:00:07]} 12. bxc3 {[%emt 0:01:58]} exd4 {[%emt 0:00:04]} 13. Bxd4 {[%emt 0:01:07]} dxe4 {[%emt 0:00:47]} 14. fxe4 {[%emt 0:00:18]} Nc6 {[%emt 0:02:29]} 15. Bxf6 {[%emt 0:00:42]} gxf6 {[%emt 0:00:06]} 16. O-O {[%emt 0:00:53]} Ke7 {[%emt 0:01:57]} 17. Rf2 {[%emt 0:00:46]} Ne5 {[%emt 0:00:33]} 18. h3 {[%emt 0:02:02]} Rg8 {[%emt 0:00:43]} 19. Kh2 {[%emt 0:03:49]} Be6 {[%emt 0:02:41]} 20. Rb1 {[%emt 0:02:02]} Rab8 {[%emt 0:03:11]} 21. Be2 {[%emt 0:04:45]} Rgc8 {[%emt 0:01:46]} 22. c4 {[%emt 0:02:47]} Bxc4 {[%emt 0:02:11]} 23. Bxc4 {[%emt 0:00:30]} Rxc4 {[%emt 0:00:07]} 24. Re2 {[%emt 0:00:38]} b5 {[%emt 0:00:22]} 25. Rb4 {[%emt 0:00:55]} Rbc8 {[%emt 0:00:39]} 26. Rxc4 {[%emt 0:01:32]} Rxc4 {[%emt 0:00:08]} 0-1

[Event "Romanian-ch Youth Open U10 2024"]
[Site "Eforie Nord"]
[Date "2024.04.13"]
[Round "3.1"]
[White "Kovacs, Balazs"]
[Black "Anghenie, Toma-Horia"]
[Result "1-0"]
[ECO "B19"]
[WhiteElo "1866"]
[BlackElo "1566"]
[Annotator "NA RC COMBH"]
[PlyCount "75"]
[EventDate "2024.04.10"]
[EventType "swiss"]
[EventCountry "ROU"]
[SourceTitle "playchess.com"]
[Source "ChessBase"]
[SourceQuality "1"]
[TimeControl "5400+30"]

1. e4 {[%emt 0:00:03]} c6 {[%emt 0:00:06]} 2. d4 {[%emt 0:00:09]} d5 {[%emt 0:00:03]} 3. Nc3 {[%emt 0:00:06]} dxe4 {[%emt 0:00:04]} 4. Nxe4 {[%emt 0:00:06]} Bf5 {[%emt 0:00:10]} 5. Ng3 {[%emt 0:00:04]} Bg6 {[%emt 0:00:15]} 6. h4 {[%emt 0:00:04]} h6 {[%emt 0:00:04]} 7. Nf3 {[%emt 0:00:03]} Nd7 {[%emt 0:00:08]} 8. h5 {[%emt 0:00:07]} Bh7 {[%emt 0:00:05]} 9. Bd3 {[%emt 0:00:04]} Bxd3 {[%emt 0:00:05]} 10. Qxd3 {[%emt 0:00:05]} e6 {[%emt 0:00:07]} 11. Bd2 {[%emt 0:00:12]} Ngf6 {[%emt 0:00:21]} 12. O-O-O {[%emt 0:00:38]} Qc7 {[%emt 0:00:14]} 13. Ne4 {[%emt 0:00:08]} Nxe4 {[%emt 0:00:22]} 14. Qxe4 {[%emt 0:00:05]} Nf6 {[%emt 0:00:08]} 15. Qe2 {[%emt 0:00:03]} O-O-O {[%emt 0:00:09]} 16. c4 {[%emt 0:00:42]} Bd6 {[%emt 0:00:41]} 17. g3 {[%emt 0:00:20]} c5 {[%emt 0:03:04]} 18. Kb1 {[%emt 0:01:25]} cxd4 {[%emt 0:05:01]} 19. Nxd4 {[%emt 0:01:26]} a6 {[%emt 0:00:13]} 20. Nb3 {[%emt 0:01:30]} Qe7 {[%emt 0:05:39]} 21. c5 {[%emt 0:00:32]} Bc7 {[%emt 0:00:28]} 22. c6 {[%emt 0:01:30]} b5 {[%emt 0:02:00]} 23. Qe3 {[%emt 0:14:46]} Kb8 {[%emt 0:01:04]} 24. Nc5 {[%emt 0:03:43]} Bb6 {[%emt 0:01:25]} 25. Bb4 {[%emt 0:15:49]} Bxc5 {[%emt 0:03:10]} 26. Bxc5 {[%emt 0:59:50]} Qc7 {[%emt 0:02:31]} 27. Bb6 {[%emt 0:00:00]} Qxc6 {[%emt 0:00:43]} 28. Bxd8 {[%emt 0:00:00]} Nd5 {[%emt 0:01:57]} 29. Qe5+ {[%emt 0:00:00]} Kb7 {[%emt 0:02:26]} 30. Ba5 {[%emt 0:00:00]} Rc8 {[%emt 0:00:29]} 31. Rc1 {[%emt 0:00:00]} Qd7 {[%emt 0:01:57]} 32. Rxc8 {[%emt 0:00:00]} Qxc8 {[%emt 0:00:10]} 33. Rc1 {[%emt 0:00:00]} Qd7 {[%emt 0:00:07]} 34. Qd4 {[%emt 0:00:00]} f6 {[%emt 0:00:20]} 35. Rc7+ {[%emt 0:00:00]} Qxc7 {[%emt 0:02:21]} 36. Bxc7 {[%emt 0:00:00]} Nxc7 {[%emt 0:00:04]} 37. Qd7 {[%emt 0:00:00]} Kb6 {[%emt 0:00:13]} 38. Qxg7 {[%emt 0:00:00]} 1-0